{"text_format":"1","workbook":"xlsx","n_sheets":6,"sheets":["Cover","Navigator","Style Guide","Model Parameters","Suggested Solution","Error Checks"],"not_rendered":{"charts":0,"images":1,"macros":1,"external_links":0,"defined_names":25,"comments":0,"pivot_tables":0},"unopened":[],"bounds":{"document_bytes":16777216,"sheet_cells":100000,"rows_first":2000,"rows_last":500,"rows_between":2000,"halvings":0,"cell_chars":16384,"cell_head_chars":4096},"cells_cut":0,"cells_raw":0,"read":"whole","date_system":"1900"}

{"sheet":"Cover","index":0,"n_rows":22,"n_cols":7,"rows_kept":22,"cut":false,"hidden":false,"merged":[[16,2,16,9],[17,2,17,9],[20,6,20,8],[21,6,21,8]]}
[]
[]
["Navigator"]
[]
[null,null,{"$f":"Client_Name","v":"SumProduct Pty Limited"}]
[null,null,{"$f":"Model_Name","v":"SP Adding Space Between Text and Numbers.xlsm"}]
[]
[]
[]
[]
[]
[]
[]
[null,null,"Primary Developer:  Liam Bastick"]
[]
[null,null,"General Cover Notes:"]
[null,null,"Walkthough of how to add space between text and numbers in a text string."]
[]
[]
[]
[null,null,"Any queries, please e-mail:",null,null,null,"liam.bastick@sumproduct.com"]
[null,null,"Website:",null,null,null,"www.sumproduct.com"]

{"sheet":"Navigator","index":1,"n_rows":13,"n_cols":7,"rows_kept":13,"cut":false,"hidden":false,"merged":[]}
["Navigator"]
[{"$f":"Model_Name","v":"SP Adding Space Between Text and Numbers.xlsm"}]
["Navigator"]
[null,null,null,null,"Error Checks:",null,{"$f":"Overall_Error_Check","v":0}]
[]
[]
[null,1,"Table of Contents"]
[]
[null,null,null,null,null,"Cover"]
[null,null,null,null,null,"Style Guide"]
[null,null,null,null,null,"Model Parameters"]
[null,null,null,null,null,"Suggested Solution"]
[null,null,null,null,null,"Error Checks"]

{"sheet":"Style Guide","index":2,"n_rows":74,"n_cols":11,"rows_kept":74,"cut":false,"hidden":false,"merged":[[80,2,80,6],[74,2,74,6],[75,2,75,6],[76,2,76,6],[77,2,77,6],[78,2,78,6],[79,2,79,6],[73,2,73,6],[62,2,62,6],[63,2,63,6],[64,2,64,6],[65,2,65,6],[66,2,66,6],[67,2,67,6],[68,2,68,6],[69,2,69,6],[70,2,70,6],[71,2,71,6],[72,2,72,6],[61,2,61,6],[47,2,47,6],[48,2,48,6],[49,2,49,6],[50,2,50,6],[51,2,51,6],[52,2,52,6],[53,2,53,6],[54,2,54,6],[57,2,57,6],[59,2,59,6],[60,2,60,6],[46,2,46,6],[35,2,35,6],[36,2,36,6],[37,2,37,6],[38,2,38,6],[39,2,39,6],[40,2,40,6],[41,2,41,6],[42,2,42,6],[43,2,43,6],[44,2,44,6],[45,2,45,6],[34,2,34,6],[17,2,17,6],[18,2,18,6],[19,2,19,6],[24,2,24,6],[25,2,25,6],[26,2,26,6],[27,2,27,6],[28,2,28,6],[29,2,29,6],[30,2,30,6],[31,2,31,6],[16,2,16,6],[2,0,2,4],[7,2,7,6],[8,2,8,6],[9,2,9,6],[10,2,10,6],[11,2,11,6],[12,2,12,6],[13,2,13,6],[14,2,14,6],[15,2,15,6]]}
[{"$f":"IF(ISERROR(RIGHT(CELL(\"filename\",A1),LEN(CELL(\"filename\",A1))-FIND(\"]\",CELL(\"filename\",A1)))),\n\"\",\nRIGHT(CELL(\"filename\",A1),LEN(CELL(\"filename\",A1))-FIND(\"]\",CELL(\"filename\",A1))))","v":"Style Guide"}]
[{"$f":"Model_Name","v":"SP Adding Space Between Text and Numbers.xlsm"}]
["Navigator"]
[null,null,null,null,"Error Checks:",null,null,null,{"$f":"Overall_Error_Check","v":0}]
[]
[null,{"$f":"MAX($B$5:$B5)+1","v":1},"Formatting of Headers / Dividers"]
[]
[null,null,"Description",null,null,null,null,null,"Display",null,"Style Name"]
[]
[null,null,"Sheet Title",null,null,null,null,null,{"$f":"C10","v":"Sheet Title"},null,"Sheet Title"]
[null,null,"Model Name",null,null,null,null,null,{"$f":"C11","v":"Model Name"},null,"Model Name"]
[]
[null,null,"Header 1",null,null,null,null,null,{"$f":"C13","v":"Header 1"},null,"Header 1"]
[null,null,"Header 2",null,null,null,null,null,{"$f":"C14","v":"Header 2"},null,"Header 2"]
[null,null,"Header 3",null,null,null,null,null,{"$f":"C15","v":"Header 3"},null,"Header 3"]
[null,null,"Header 4",null,null,null,null,null,{"$f":"C16","v":"Header 4"},null,"Header 4"]
[]
[null,null,"Notes",null,null,null,null,null,{"$f":"C18","v":"Notes"},null,"Notes"]
[]
[null,null,"Table Heading",null,null,null,null,null,{"$f":"C20","v":"Table Heading"},null,"Table Heading"]
[]
[]
[null,{"$f":"MAX($B$5:$B22)+1","v":2},"Individual Cell Styles"]
[]
[null,null,"Description",null,null,null,null,null,"Display",null,"Style Name"]
[]
[null,null,"Assumption",null,null,null,null,null,"Assumption",null,{"$f":"C27","v":"Assumption"}]
[]
[null,null,"Constraint",null,null,null,null,null,{"$f":"C29","v":"Constraint"},null,{"$f":"C29","v":"Constraint"}]
[]
[null,null,"Empty",null,null,null,null,null,null,null,{"$f":"C31","v":"Empty"}]
[]
[null,null,"Error Check",null,null,null,null,null,0,null,{"$f":"C33","v":"Error Check"}]
[]
[null,null,"Hyperlink",null,null,null,null,null,"Hyperlink",null,{"$f":"C35","v":"Hyperlink"}]
[]
[null,null,"Internal Reference",null,null,null,null,null,{"$f":"'Error Checks'!E12","v":"Consistent Result?"},null,{"$f":"C37","v":"Internal Reference"}]
[]
[null,null,"Line Calculation",null,null,null,null,null,77,null,"Line Calc"]
[]
[null,null,"Line Total",null,null,null,null,null,{"$f":"I39","v":77},null,{"$f":"C41","v":"Line Total"}]
[]
[null,null,"Parameter",null,null,null,null,null,365,null,{"$f":"C43","v":"Parameter"}]
[]
[null,null,"Range Name Description",null,null,null,null,null,"Not_Named",null,{"$f":"C45","v":"Range Name Description"}]
[]
[null,null,"Row Reference",null,null,null,null,null,{"$f":"ROW(C47)","v":47},null,"Row Ref"]
[]
[null,null,"Row Summary",null,null,null,null,null,{"$f":"I41","v":77},null,{"$f":"C49","v":"Row Summary"}]
[]
[null,null,"Units",null,null,null,null,null,"A$",null,{"$f":"C51","v":"Units"}]
[]
[null,null,"WIP",null,null,null,null,null,null,null,{"$f":"C53","v":"WIP"}]
[]
[]
[null,{"$f":"MAX($B$5:$B55)+1","v":3},"Numerical Styles"]
[]
[null,null,"Description",null,null,null,null,null,"Display",null,"Style Name"]
[]
[null,null,"Comma",null,null,null,null,null,123456.789,null,{"$f":"C60","v":"Comma"}]
[]
[null,null,"Comma [0]",null,null,null,null,null,-123456.789,null,"Comma [0]"]
[]
[null,null,"Currency",null,null,null,null,null,123456.789,null,"Currency"]
[]
[null,null,"Currency [0]",null,null,null,null,null,123456.789,null,"Currency [0]"]
[]
[null,null,"Date",null,null,null,null,null,{"$f":"TODAY()","v":"2022-12-20"},null,{"$f":"C68","v":"Date"}]
[]
[null,null,"Date Heading",null,null,null,null,null,{"$f":"TODAY()","v":"2022-12-20"},null,{"$f":"C70","v":"Date Heading"}]
[]
[null,null,"Numbers 0",null,null,null,null,null,-123456.789,null,{"$f":"C72","v":"Numbers 0"}]
[]
[null,null,"Percent",null,null,null,null,null,0.5,null,{"$f":"C74","v":"Percent"}]

{"sheet":"Model Parameters","index":3,"n_rows":31,"n_cols":9,"rows_kept":31,"cut":false,"hidden":false,"merged":[[0,9,0,10],[2,0,2,4],[10,6,10,13],[11,6,11,13]]}
[{"$f":"IF(ISERROR(RIGHT(CELL(\"filename\",A1),LEN(CELL(\"filename\",A1))-FIND(\"]\",CELL(\"filename\",A1)))),\n\"\",\nRIGHT(CELL(\"filename\",A1),LEN(CELL(\"filename\",A1))-FIND(\"]\",CELL(\"filename\",A1))))","v":"Model Parameters"}]
[{"$f":"Model_Name","v":"SP Adding Space Between Text and Numbers.xlsm"}]
["Navigator"]
[null,null,null,null,"Error Checks:",null,null,null,{"$f":"Overall_Error_Check","v":0}]
[]
[null,{"$f":"MAX($B$5:$B5)+1","v":1},"General"]
[]
[null,null,"Key Inputs"]
[]
[null,null,null,null,"General"]
[null,null,null,null,"Model Name",null,{"$f":"IF(ISERROR(OR(FIND(\"[\",CELL(\"filename\",A1)),FIND(\"]\",CELL(\"filename\",A1)))),\"\",MID(CELL(\"filename\",A1),FIND(\"[\",CELL(\"filename\",A1))+1,FIND(\"]\",CELL(\"filename\",A1))-FIND(\"[\",CELL(\"filename\",A1))-1))","v":"SP Adding Space Between Text and Numbers.xlsm"}]
[null,null,null,null,"Client Name",null,"SumProduct Pty Limited"]
[]
[]
[null,{"$f":"MAX($B$5:$B14)+1","v":2},"General Range Names"]
[]
[null,null,"Technical Assumptions"]
[]
[null,null,null,null,"Days in Year",null,365]
[null,null,null,null,"Months in Month",null,1]
[null,null,null,null,"Months in Quarter",null,3]
[null,null,null,null,"Months in Half Yr",null,6]
[null,null,null,null,"Months in Year",null,12]
[null,null,null,null,"Quarters in Year",null,4]
[]
[null,null,null,null,"Rounding Accuracy",null,5]
[]
[null,null,null,null,"Very Large Number",null,9.9999999999999997E+98]
[null,null,null,null,"Very Small Number",null,1E-8]
[]
[null,null,null,null,"Thousand",null,1000]

{"sheet":"Suggested Solution","index":4,"n_rows":48,"n_cols":73,"rows_kept":48,"cut":false,"hidden":false,"merged":[[2,0,2,4],[11,5,11,12],[15,5,15,12],[15,14,19,20]]}
[{"$f":"IF(ISERROR(RIGHT(CELL(\"filename\",A1),LEN(CELL(\"filename\",A1))-FIND(\"]\",CELL(\"filename\",A1)))),\n\"\",\nRIGHT(CELL(\"filename\",A1),LEN(CELL(\"filename\",A1))-FIND(\"]\",CELL(\"filename\",A1))))","v":"Suggested Solution"}]
[{"$f":"Model_Name","v":"SP Adding Space Between Text and Numbers.xlsm"}]
["Navigator"]
[null,null,null,null,"Error Checks:",null,null,null,{"$f":"Overall_Error_Check","v":0}]
[]
[null,{"$f":"MAX($B$5:$B5)+1","v":1},{"$f":"A1","v":"Suggested Solution"}]
[]
[null,null,"Illustration"]
[]
[null,null,null,"Type Text Here"]
[]
[null,null,null,null,null,"Liam123Tim                   Heng    4567 Hanh8JonAtHan90!"]
[]
[null,null,null,"Result"]
[]
[null,null,null,null,null,{"$f":"PROPER(TRIM(_xlfn.CONCAT(IF(INDEX(IF(ISNUMBER(VALUE(MID(F12,_xlfn.SEQUENCE(1,LEN(F12)),1))),1,),_xlfn.SEQUENCE(1,LEN(F12)))=INDEX(IF(ISNUMBER(VALUE(MID(F12,_xlfn.SEQUENCE(1,LEN(F12)),1))),1,),_xlfn.SEQUENCE(1,LEN(F12),0)),MID(F12,_xlfn.SEQUENCE(1,LEN(F12)),1),\" \"&MID(F12,_xlfn.SEQUENCE(1,LEN(F12)),1)))))","v":"Liam 123 Tim Heng 4567 Hanh 8 Jonathan 90 !"},null,null,null,null,null,null,null,null,{"$f":"IFERROR(_xlfn.FORMULATEXT(F16),\"\")","v":"=PROPER(TRIM(CONCAT(IF(INDEX(IF(ISNUMBER(VALUE(MID(F12,SEQUENCE(1,LEN(F12)),1))),1,),SEQUENCE(1,LEN(F12)))=INDEX(IF(ISNUMBER(VALUE(MID(F12,SEQUENCE(1,LEN(F12)),1))),1,),SEQUENCE(1,LEN(F12),0)),MID(F12,SEQUENCE(1,LEN(F12)),1),\" \"&MID(F12,SEQUENCE(1,LEN(F12)),1)))))"}]
[]
[null,null,null,null,null,"Same as longhand?",null,null,{"$f":"(F16<>P48)*1","v":0}]
[]
[]
[]
[null,{"$f":"MAX($B$5:$B21)+1","v":2},"How it Works"]
[]
[null,null,"Walk Through"]
[]
[null,null,null,"Using Dynamic Arrays"]
[]
[null,null,null,null,"Original Value",null,null,{"$f":"IFERROR(_xlfn.FORMULATEXT(P28),\"\")","v":"=F12"},null,null,null,null,null,null,null,{"$f":"F12","v":"Liam123Tim                   Heng    4567 Hanh8JonAtHan90!"}]
[]
[null,null,null,null,"Separate Characters",null,null,{"$f":"IFERROR(_xlfn.FORMULATEXT(P30),\"\")","v":"=MID(P28,SEQUENCE(1,LEN(P28)),1)"},null,null,null,null,null,null,null,{"$f":"MID(P28,_xlfn.SEQUENCE(1,LEN(P28)),1)","v":"L"},"i","a","m","1","2","3","T","i","m"," "," "," "," "," "," "," "," "," "," "," "," "," "," "," "," "," "," "," ","H","e","n","g"," "," "," "," ","4","5","6","7"," ","H","a","n","h","8","J","o","n","A","t","H","a","n","9","0","!"]
[]
[null,null,null,null,"Identify Numbers",null,null,{"$f":"IFERROR(_xlfn.FORMULATEXT(P32),\"\")","v":"=VALUE(P30#)"},null,null,null,null,null,null,null,{"$f":"VALUE(_xlfn.ANCHORARRAY(P30))","v":{"$error":"#VALUE!"}},{"$error":"#VALUE!"},{"$error":"#VALUE!"},{"$error":"#VALUE!"},1,2,3,{"$error":"#VALUE!"},{"$error":"#VALUE!"},{"$error":"#VALUE!"},{"$error":"#VALUE!"},{"$error":"#VALUE!"},{"$error":"#VALUE!"},{"$error":"#VALUE!"},{"$error":"#VALUE!"},{"$error":"#VALUE!"},{"$error":"#VALUE!"},{"$error":"#VALUE!"},{"$error":"#VALUE!"},{"$error":"#VALUE!"},{"$error":"#VALUE!"},{"$error":"#VALUE!"},{"$error":"#VALUE!"},{"$error":"#VALUE!"},{"$error":"#VALUE!"},{"$error":"#VALUE!"},{"$error":"#VALUE!"},{"$error":"#VALUE!"},{"$error":"#VALUE!"},{"$error":"#VALUE!"},{"$error":"#VALUE!"},{"$error":"#VALUE!"},{"$error":"#VALUE!"},{"$error":"#VALUE!"},{"$error":"#VALUE!"},{"$error":"#VALUE!"},{"$error":"#VALUE!"},4,5,6,7,{"$error":"#VALUE!"},{"$error":"#VALUE!"},{"$error":"#VALUE!"},{"$error":"#VALUE!"},{"$error":"#VALUE!"},8,{"$error":"#VALUE!"},{"$error":"#VALUE!"},{"$error":"#VALUE!"},{"$error":"#VALUE!"},{"$error":"#VALUE!"},{"$error":"#VALUE!"},{"$error":"#VALUE!"},{"$error":"#VALUE!"},9,0,{"$error":"#VALUE!"}]
[]
[null,null,null,null,"Classify",null,null,{"$f":"IFERROR(_xlfn.FORMULATEXT(P34),\"\")","v":"=IF(ISNUMBER(P32#),1,)"},null,null,null,null,null,null,null,{"$f":"IF(ISNUMBER(_xlfn.ANCHORARRAY(P32)),1,)","v":0},0,0,0,1,1,1,0,0,0,0,0,0,0,0,0,0,0,0,0,0,0,0,0,0,0,0,0,0,0,0,0,0,0,0,0,0,1,1,1,1,0,0,0,0,0,1,0,0,0,0,0,0,0,0,1,1,0]
[]
[null,null,null,null,"Nth Character",null,null,{"$f":"IFERROR(_xlfn.FORMULATEXT(P36),\"\")","v":"=INDEX(P34#,SEQUENCE(1,LEN(P28)))"},null,null,null,null,null,null,null,{"$f":"INDEX(_xlfn.ANCHORARRAY(P34),_xlfn.SEQUENCE(1,LEN(P28)))","v":0},0,0,0,1,1,1,0,0,0,0,0,0,0,0,0,0,0,0,0,0,0,0,0,0,0,0,0,0,0,0,0,0,0,0,0,0,1,1,1,1,0,0,0,0,0,1,0,0,0,0,0,0,0,0,1,1,0]
[]
[null,null,null,null,"(N-1)th Character",null,null,{"$f":"IFERROR(_xlfn.FORMULATEXT(P38),\"\")","v":"=INDEX(P34#,SEQUENCE(1,LEN(P28),0))"},null,null,null,null,null,null,null,{"$f":"INDEX(_xlfn.ANCHORARRAY(P34),_xlfn.SEQUENCE(1,LEN(P28),0))","v":0},0,0,0,0,1,1,1,0,0,0,0,0,0,0,0,0,0,0,0,0,0,0,0,0,0,0,0,0,0,0,0,0,0,0,0,0,0,1,1,1,1,0,0,0,0,0,1,0,0,0,0,0,0,0,0,1,1]
[]
[null,null,null,null,"Consistenct Class?",null,null,{"$f":"IFERROR(_xlfn.FORMULATEXT(P40),\"\")","v":"=P36#=P38#"},null,null,null,null,null,null,null,{"$f":"_xlfn.ANCHORARRAY(P36)=_xlfn.ANCHORARRAY(P38)","v":true},true,true,true,false,true,true,false,true,true,true,true,true,true,true,true,true,true,true,true,true,true,true,true,true,true,true,true,true,true,true,true,true,true,true,true,true,false,true,true,true,false,true,true,true,true,false,false,true,true,true,true,true,true,true,false,true,false]
[]
[null,null,null,null,"Add Spaces",null,null,{"$f":"IFERROR(_xlfn.FORMULATEXT(P42),\"\")","v":"=IF(INDEX(P34#,SEQUENCE(1,LEN(P28)))=INDEX(P34#,SEQUENCE(1,LEN(P28),0)),P30#,\" \"&P30#)"},null,null,null,null,null,null,null,{"$f":"IF(INDEX(_xlfn.ANCHORARRAY(P34),_xlfn.SEQUENCE(1,LEN(P28)))=INDEX(_xlfn.ANCHORARRAY(P34),_xlfn.SEQUENCE(1,LEN(P28),0)),_xlfn.ANCHORARRAY(P30),\" \"&_xlfn.ANCHORARRAY(P30))","v":"L"},"i","a","m"," 1","2","3"," T","i","m"," "," "," "," "," "," "," "," "," "," "," "," "," "," "," "," "," "," "," ","H","e","n","g"," "," "," "," "," 4","5","6","7","  ","H","a","n","h"," 8"," J","o","n","A","t","H","a","n"," 9","0"," !"]
[null,null,null,null,null,null,null,{"$f":"IFERROR(_xlfn.FORMULATEXT(P43),\"\")","v":""}]
[null,null,null,null,"Concatenate",null,null,{"$f":"IFERROR(_xlfn.FORMULATEXT(P44),\"\")","v":"=CONCAT(P42#)"},null,null,null,null,null,null,null,{"$f":"_xlfn.CONCAT(_xlfn.ANCHORARRAY(P42))","v":"Liam 123 Tim                   Heng     4567  Hanh 8 JonAtHan 90 !"}]
[]
[null,null,null,null,"Trim",null,null,{"$f":"IFERROR(_xlfn.FORMULATEXT(P46),\"\")","v":"=TRIM(P44)"},null,null,null,null,null,null,null,{"$f":"TRIM(P44)","v":"Liam 123 Tim Heng 4567 Hanh 8 JonAtHan 90 !"}]
[]
[null,null,null,null,"Make Proper",null,null,{"$f":"IFERROR(_xlfn.FORMULATEXT(P48),\"\")","v":"=PROPER(P46)"},null,null,null,null,null,null,null,{"$f":"PROPER(P46)","v":"Liam 123 Tim Heng 4567 Hanh 8 Jonathan 90 !"}]

{"sheet":"Error Checks","index":5,"n_rows":17,"n_cols":9,"rows_kept":17,"cut":false,"hidden":false,"merged":[[0,8,0,9],[2,0,2,4]]}
[{"$f":"IF(ISERROR(RIGHT(CELL(\"filename\",A1),LEN(CELL(\"filename\",A1))-FIND(\"]\",CELL(\"filename\",A1)))),\n\"\",\nRIGHT(CELL(\"filename\",A1),LEN(CELL(\"filename\",A1))-FIND(\"]\",CELL(\"filename\",A1))))","v":"Error Checks"}]
[{"$f":"Model_Name","v":"SP Adding Space Between Text and Numbers.xlsm"}]
["Navigator"]
[null,"Error Checks:",null,null,null,{"$f":"Overall_Error_Check","v":0}]
[]
[null,{"$f":"MAX($B$5:$B5)+1","v":1},"Error Checks"]
[]
[null,null,"Summary of Errors"]
[]
[null,null,null,"Assumptions"]
[]
[null,null,null,null,"Consistent Result?",null,null,null,{"$f":"HL_Consistent_Result","v":0}]
[]
[]
[]
[]
[null,null,null,null,{"$f":"C8","v":"Summary of Errors"},null,null,null,{"$f":"MIN(1,SUM(I11:I15))","v":0}]